Cogmind - Beta 10.2 @@@ ROGUE MODE // 2020.11.24 @ 12:25:43 Player: ILikeMonsters1890 Result: Destroyed by as-72235 with Assembled Rifle Performance ------------- Evolutions (0) 0 Regions Visited (2) 400 Robots Destroyed (11) 55 Value Destroyed (161) 161 Prototype IDs (0) 0 Alien Tech Used (0) 0 Bonus (0) 0 TOTAL SCORE: 616 Bonus ------- None Cogmind --------- Core Integrity 0/250 Matter 300/300 Energy 100/100 System Corruption 2% Temperature Cool (0) Movement Core (150) Ox2 Location -10/Mines Parts ------- > --- POWER (1) -------- (None) > --- PROPULSION (2) --- (None) > --- UTILITY (2) ------ Medium Storage Unit > --- WEAPON (2) ------- (None) > --- INVENTORY (8) ---- (None) Peak State ------------ > --- POWER ------------ Light Ion Engine > --- PROPULSION ------- Wheel Wheel > --- UTILITY ---------- Medium Storage Unit Tractor Beam > --- WEAPON ----------- EM Pulse Gun Grenade Launcher > --- INVENTORY -------- Large Battery [Rating: 7] Favorites ----------- Power Light Ion Engine Engine Light Ion Engine Propulsion Wheel Wheel Wheel Flight Unit Flight Unit Utility Medium Storage Unit Device Tractor Beam Storage Medium Storage Unit Weapon EM Pulse Gun Energy Gun EM Pulse Gun Launcher Grenade Launcher Special Weapon Mining Laser Build | -11 -10 -10 ------- Run | Scr Mat Min Slots Evolved . | . . . Power . | . . . Propulsion . | . . . Utility . | . . . Weapon . | . . . Parts Attached 13 | 6 4 3 Power 2 | 1 . 1 Engine 2 | 1 . 1 Core . | . . . Reactor . | . . . Propulsion 5 | 3 1 1 Treads . | . . . Leg . | . . . Wheel 4 | 3 1 . Hover . | . . . Flight 1 | . . 1 Utility 3 | . 2 1 Device 1 | . 1 . Storage 2 | . 1 1 Processor . | . . . Hackware . | . . . Protection . | . . . Artifact . | . . . Weapon 3 | 2 1 . Energy Gun 1 | 1 . . Energy Cannon . | . . . Ballistic Gun . | . . . Ballistic Cannon . | . . . Launcher 1 | . 1 . Special Weapon 1 | 1 . . Impact Weapon . | . . . Slashing Weapon . | . . . Piercing Weapon . | . . . Special Melee Weapon . | . . . Unidentified Prototypes . | . . . Parts Lost 10 | . 5 5 Power 2 | . 1 1 Propulsion 4 | . 2 2 Utility 2 | . . 2 Weapon 2 | . 2 . Highest Loss Streak 10 | . 5 10 Average Slot Usage (%) 62 | . 77 33 Engine 9 | . 11 4 Wheel 16 | . 24 . Flight 1 | . . 4 Device 7 | . 8 4 Storage 12 | . 9 18 Energy Gun 6 | . 9 . Launcher 7 | . 10 . Special Weapon 1 | . 2 . Naked Turns . | . . . Heaviest Build 17 | 6 17 14 Greatest Support 26 | 20 26 4 Greatest Overweight (x) 4 | . 1 4 Average Overweight (x) . | . . 2 Largest Inventory Capacity 8 | 4 8 8 Average Capacity 6 | 4 6 8 Most Carried 3 | 2 2 3 Average Carried . | . . . Final Capacity 8 | 4 8 8 Final Carried 1 | . 1 . Class Distribution -------------------- 100% | Mutant Dominant Class ---------------- Mutant | -10/Materials Mutant | -10/Mines Resources | -11 -10 -10 ----------- Run | Scr Mat Min Matter Collected 331 | 260 32 39 Remotely 52 | . 32 20 Salvage Created 216 | 91 125 . Parts 19 | 6 13 . Haulers Intercepted . | . . . Recyclers Shooed 1 | . 1 . Parts Field Recycled . | . . . Retrieved Matter . | . . . Parts Self-Destructed . | . . . Prevented . | . . . Kills | -11 -10 -10 ------- Run | Scr Mat Min Combat Hostiles Destroyed 4 | 1 3 . AOE 4 | 1 3 . Classes Destroyed 7 | 3 4 . Worker 2 | 1 1 . Builder 1 | . 1 . Tunneler 2 | 2 . . Recycler 1 | . 1 . Watcher 1 | . 1 . Swarmer 2 | . 2 . Grunt 2 | 1 1 . Best Kill Streak 7 | 3 7 . Combat Bots Only 3 | 1 3 . Max Kills in Single Turn 3 | 3 3 . Gunslinging . | . . . Exploded 2 | 1 2 . Melee . | . . . Uniques/NPCs Destroyed . | . . . Combat | -11 -10 -10 -------- Run | Scr Mat Min Damage Taken 746 | 87 265 394 Core 261 | 33 34 194 Absorbed by Shields . | . . . Core Remaining (%) 86 | 86 . . Volleys Fired 14 | 8 6 . Largest 2 | 1 2 . Hottest 70 | 40 70 . Shots Fired 15 | 8 7 . Gun 9 | 8 1 . Cannon . | . . . Launcher 6 | . 6 . Special . | . . . Kinetic . | . . . Thermal . | . . . Explosive 6 | . 6 . Electromagnetic 9 | 8 1 . Robot Hit Streak 5 | 5 2 . Robot Miss Streak 1 | 1 1 . Penetration Max . | . . . Secondary Targets . | . . . Shots Hit Robots 10 | 6 4 . Core Hits 17 | 5 10 2 Critical Hits . | . . . Critical Kills . | . . . Critical Parts Destroyed . | . . . Melee Attacks . | . . . Impact . | . . . Slashing . | . . . Piercing . | . . . Sneak Attacks . | . . . Combat Hostiles . | . . . Follow-up Attacks . | . . . Damage Inflicted 908 | 271 630 7 Guns 85 | 85 . . Cannons . | . . . Explosions 799 | 186 613 . Melee . | . . . Ramming 24 | . 17 7 Kinetic . | . . . Thermal 258 | 186 72 . Explosive 541 | . 541 . Electromagnetic 85 | 85 . . Impact . | . . . Slashing . | . . . Piercing . | . . . Highest Corruption 2 | . . 2 Average Corruption 1 | . . 1 Corruption Purged . | . . . Overload Shots . | . . . Overflow Damage 82 | 4 78 . Projectiles . | . . . Explosions 82 | 4 78 . Melee . | . . . Knockbacks . | . . . Impact . | . . . Kinetic . | . . . Secondary . | . . . Self-Inflicted Damage 166 | 32 132 2 Shots 5 | 1 4 . Rammed 8 | . 4 4 Targets Rammed 8 | . 4 4 Kicked . | . . . Crushed . | . . . Highest Temperature 30 | 24 30 2 Average Temperature 13 | 12 18 2 Received Heat Transfer 125 | 30 15 80 Siege Activations . | . . . Robots Corrupted . | . . . Combat Hostiles . | . . . Parts Fried . | . . . Impact Corruptions . | . . . Robots Melted . | . . . Combat Hostiles . | . . . Parts Melted . | . . . Heat Transferred 300 | 250 50 . Parts Sabotaged . | . . . Parts Stolen . | . . . Parts Stripped . | . . . Power Chain Reactions 2 | 2 . . Missiles Intercepted . | . . . Alert | -11 -10 -10 ------- Run | Scr Mat Min Peak Influence 139 | 35 139 49 Initial 49 | . 22 49 Average 28 | 7 43 26 Maximum Alert Level . | . . . Low Security (%) 100 | 100 100 100 Level 1 . | . . . Level 2 . | . . . Level 3 . | . . . Level 4 . | . . . Level 5 . | . . . High Security . | . . . Max Security . | . . . Squads Dispatched . | . . . Investigation . | . . . Extermination . | . . . Reinforcement . | . . . Assault . | . . . Garrison . | . . . Intercept . | . . . Construction Impeded . | . . . Haulers Reinforced . | . . . Stealth | -11 -10 -10 --------- Run | Scr Mat Min Distress Signals 2 | . 2 . Communications Jammed . | . . . Distress Signals . | . . . Times Spotted 27 | 1 11 15 Peak Tracking Total 9 | 1 9 7 Tactical Retreats . | . . . Traps | -11 -10 -10 ------- Run | Scr Mat Min Traps Triggered . | . . . Indirectly . | . . . Trap Hack Attempts . | . . . Triggered . | . . . Disarmed 4 | . 4 . Reprogrammed . | . . . Reused . | . . . Traps Extracted . | . . . Installed . | . . . Triggered . | . . . Machines | -11 -10 -10 ---------- Run | Scr Mat Min Machines Disabled 3 | . 3 . Max in Single Turn 2 | . 2 . Machines Sabotaged . | . . . Garrisons Compromised . | . . . Overloaded Fab Kills . | . . . Fab Network Shutdowns . | . . . Hacking | -11 -10 -10 --------- Run | Scr Mat Min Machines Accessed 3 | . 3 . Terminals 1 | . 1 . Fabricators . | . . . Repair Stations . | . . . Recycling Units 2 | . 2 . Scanalyzers . | . . . Garrison Access . | . . . Total Hacks 10 | . 10 . Successful 7 | . 7 . Failed 3 | . 3 . Catastrophic . | . . . Database Lockouts . | . . . Manual . | . . . Terminals 3 | . 3 . Fabricators . | . . . Repair Stations . | . . . Recycling Units 7 | . 7 . Scanalyzers . | . . . Garrison Access . | . . . Terminal Hacks 2 | . 2 . Disarm Traps 1 | . 1 . Zone Layout 1 | . 1 . Fabricator Hacks . | . . . Repair Station Hacks . | . . . Recycling Unit Hacks 5 | . 5 . Process 1 | . 1 . Report Inventory 2 | . 2 . Retrieve Matter 1 | . 1 . Retrieve Components 1 | . 1 . Scanalyzer . | . . . Garrison Access Hacks . | . . . Unauthorized Hacks . | . . . Terminals . | . . . Fabricators . | . . . Repair Stations . | . . . Recycling Units . | . . . Scanalyzers . | . . . Garrison Access . | . . . Data Cores Recovered . | . . . Used . | . . . Hacking Detections 2 | . 2 . Full Trace Events . | . . . Feedback Events . | . . . Feedback Blocked . | . . . Robot Schematics Acquired . | . . . Robots Built . | . . . Matter . | . . . Time . | . . . Total Robot Build Rating . | . . . Part Schematics Acquired . | . . . Parts Built . | . . . Matter . | . . . Time . | . . . Total Part Build Rating . | . . . Parts Repaired . | . . . Time . | . . . Parts Recycled . | . . . Recycled Matter 8 | . 8 . Retrieved Matter 8 | . 8 . Retrieved Components 2 | . 2 . Parts Scanalyzed . | . . . Part Schematics Acquired . | . . . Parts Damaged . | . . . Bothacking | -11 -10 -10 ------------ Run | Scr Mat Min Used RIF Installer . | . . . Robots Hacked . | . . . Non-combat . | . . . Combat . | . . . Robot Hacks Applied . | . . . Relay Couplers Released . | . . . Robots Rewired . | . . . Allies Hacked . | . . . Hacks Repelled . | . . . Allies | -11 -10 -10 -------- Run | Scr Mat Min Total Allies . | . . . Largest Group . | . . . Highest-Rated Group . | . . . Highest-Rated Ally . | . . . Total Orders . | . . . Ally Attacks . | . . . Total Damage . | . . . Kills . | . . . Allies Corrupted . | . . . Allies Melted . | . . . Intel | -11 -10 -10 ------- Run | Scr Mat Min Robot Analysis Total . | . . . Derelict Logs Recovered 1 | . . 1 Drone Launches . | . . . Drone Recoveries . | . . . Exploration | -11 -10 -10 ------------- Run | Scr Mat Min Turns Passed 259 | 79 121 59 Spaces Moved 209 | 69 113 27 Core 37 | 16 . 21 Treads . | . . . Legs . | . . . Wheels 166 | 53 113 . Hover . | . . . Flight 6 | . . 6 Fastest Speed 50 | 50 80 150 Average Speed 92 | 73 82 182 Slowest Speed 280 | 80 100 280 Overloaded Moves . | . . . Propulsion Burnouts . | . . . Robots Hopped . | . . . Cave-ins Triggered . | . . . Exploration Rate (%) 15 | 9 28 9 Regions Visited 2 Branch Regions 1 Pre-discovered Areas 1 | . . 1 Known Exits Taken . | . . . Unknown Exits Taken 2 | 1 1 . Scrap Searched . | . . . Spaces Dug . | . . . Terrain Destroyed 53 | . 53 . Melee . | . . . Projectile . | . . . AOE 53 | . 53 . Terrain Rammed . | . . . Walls Destroyed . | . . . Machines Disabled . | . . . Actions | -11 -10 -10 --------- Run | Scr Mat Min Total 261 | 90 135 36 Wait . | . . . Move 207 | 68 112 27 Hop . | . . . Pick Up 14 | 6 6 2 Fast Attach . | . . . Attach 13 | 6 4 3 Detach 2 | 1 1 . Swap . | . . . Drop 3 | 1 2 . Fire 14 | 8 6 . Melee . | . . . Ram 8 | . 4 4 Kick . | . . . Crush . | . . . Escape Stasis . | . . . Rewire . | . . . Trap . | . . . Miscellaneous . | . . . Route ------- -11/Scrapyard -10/Materials -10/Mines History --------- Turn | Location | Event 2 | -11/Scrapyard | Met Revision 17 51 | -11/Scrapyard | Discovered new exit (range 8) 80 | -11/Scrapyard | Entered Materials 179 | -10/Materials | Discovered new exit (range 13) 201 | -10/Materials | Entered Mines 202 | -10/Mines | Assembled infested the area 207 | -10/Mines | Assisted by a Guerilla fighting off Assembled 224 | -10/Mines | Learned location of Zion (-7) 226 | -10/Mines | Core integrity fell below 50% 247 | -10/Mines | Core integrity fell below 20% 260 | -10/Mines | Destroyed by as-72235 with Assembled Rifle Last Messages --------------- U-05 Engineer lays Concrete. The unstable cave ceiling collapses. U-05 Engineer builds a Wall. D-53 Grenadier destroyed. 3W-R63(h) destroyed. The unstable cave ceiling collapses. R-06 Scavenger knocked back. R-06 Scavenger destroyed. as-11883 sneak attacks. R-06 Scavenger knocked back. Flight Unit destroyed. System corrupted by crushing effect (+1). The unstable cave ceiling collapses. Acquired 19 matter. Lgt. Ion Engine destroyed. Lrg. Battery destroyed. System corrupted by crushing effect (+1). R-06 Scavenger destroyed. as-11883 sneak attacks. K-01 Serf destroyed. Map ----- +----------------------------------------------------+ | ?????????????????????????????????????????????????? | | ?????????????????????????????????????????????????? | | ?????????????????????????????????????????????????? | | ?????????????????????????????????????????????????? | | ?????????????????????????????????????????????????? | | ?????????????????????????????????????????????????? | | ?????????????????????????????????????????????????? | | ?????????????????????????????????????????????????? | | ?????????????????????????????????????????????????? | | ?????????????????????????????????????????????????? | | ?????????????????????????????????????????????????? | | ?????????????????????????????????????????????????? | | ?????#???????????????????????????????????????????? | | ?????# ??????????????????????????????????????????? | | ????## #??#########??????????????????????????????? | | ????? ##" #????###???????????????????????? | | ??????# =# # ## #????# ???????????????????????? | | ??????#%*%= # ####?# #???????????????????????? | | ??????## ! # #?# ##??????????????????????? | | ???????# %!% % #### ###????????????????????? | | ???????## =% ##?# ##???????????????????? | | ????????# ##### a! $ #???????????????????? | | ????????# * ! aa% #???????????????????? | | ????????### # # ###### ######## ????????? | | ??????????############?# ????????? | | ???????????????????????##@ ##### ?????????? | | ????????????????????????# ### #?????????????????? | | ????????????????????????# #??? #?????????????????? | | ????????????????????????# ????#?????????????????? | | ????????????????????????###??????????????????????? | | ?????????????????????????????????????????????????? | | ?????????????????????????????????????????????????? | | ?????????????????????????????????????????????????? | | ?????????????????????????????????????????????????? | | ?????????????????????????????????????????????????? | | ?????????????????????????????????????????????????? | | ?????????????????????????????????????????????????? | | ?????????????????????????????????????????????????? | | ?????????????????????????????????????????????????? | | ?????????????????????????????????????????????????? | | ?????????????????????????????????????????????????? | | ?????????????????????????????????????????????????? | | ?????????????????????????????????????????????????? | | ?????????????????????????????????????????????????? | | ?????????????????????????????????????????????????? | | | | | | | | | | | +----------------------------------------------------+ Best States ------------- Heat Dissipation 25 Energy Generation 10 Energy Capacity 425 Matter Stores 300 Matter Capacity 300 Sight Range 16 Terrain Scan Density 10 Evasion (%) 50 Item Schematics ----------------- None Robot Schematics ------------------ None Fabricated ------------ Nothing Alien Tech Used ----------------- None Achievements -------------- None Challenges ------------ None Game ------ Seed SkeletonHelicalPerforator Manual? 0 Play Time 00:15:58 Cumulative 1.0 hours Start 2020.11.24 @ 11:59:09 End 2020.11.24 @ 12:25:43 Sessions 1 Manual Loads 0 Difficulty Rogue Special Mode None Game No. 3 Rogue 3 Adventurer 0 Explorer 0 Win Type - Total 0 Types 0/0/0/0/0/0/0/0/0 Lore% 0 Gallery% 2 Achievement% 1 Wizard Run 0 Options --------- ASCII 0 Keyboard 0 Movement Numpad Keybinds 0 Fullscreen 1 Font 18/SmallcapsGlow Map View 76x50 Tactical HUD 0 Map Filters NONE Filters NONE Steam 1 RUN: 0fe12fe3-f856-4d47-a4bd-2e13bd464ca6